{"text_format":"3","workbook":"xlsx","n_sheets":3,"sheets":["Aloitus","Lahjabudjetti ja seuranta","Tiedot"],"not_rendered":{"charts":1,"defined_names":1},"read":"whole","date_system":"1900"}

{"sheet":"Aloitus","index":0,"n_rows":7,"n_cols":2,"rows_kept":7}
[null,"Tietoja mallista"]
[null,"Tämän mallin avulla voit kirjata lahjaostoksesi ja seurata niitä budjetin mukaan."]
[null,"Kirjoita taulukkoon perheenjäsenten ja ystävien nimet, lahjanimikkeet, budjetoidut ja käytetyt summat sekä muistiinpanot ja valitse merkkipäivä ja tapahtuman kuukausi."]
[null,"Kuukausittaisen yleiskatsauksen kaavio päivitetään automaattisesti."]
[null,"Muistiinpano: "]
[null,"Lisäohjeita on LAHJABUDJETTI JA SEURANTA-laskentataulukon sarakkeessa A. Tämä teksti on piilotettu tarkoituksella. Jos haluat poistaa tekstin, valitse sarake A ja valitse sitten POISTA. Jos haluat tuoda tekstin näkyviin, valitse sarake A ja muuta sitten fontin väriä."]
[null,"Jos haluat lisätietoja taulukosta, paina taulukossa VAIHTO ja sitten F10, valitse TAULUKKO-vaihtoehto ja valitse sitten VAIHTOEHTOINEN TEKSTI."]

{"sheet":"Lahjabudjetti ja seuranta","index":1,"n_rows":10,"n_cols":13,"rows_kept":10,"merged":[[0,1,0,4],[0,5,0,12],[1,1,1,2],[2,1,2,12],[3,1,3,3]]}
["Luo henkilökohtainen lahjabudjetti ja -seuranta tähän laskentataulukkoon. Laskentataulukon otsikko on solussa oikealla, ja solussa F1 on vinkki. Tämän sarakkeen soluissa on hyödyllisiä ohjeita laskentataulukon käyttöön.","Lahjabudjetti ja seuranta",{"$nulls":3},"Täytä niin paljon kuin mahdollista jokaisen uuden vuoden alussa. Kirjoita perheenjäsenten ja ystävien nimet, valitse lahjan merkkipäivä, valitse tapahtuman kuukausi ja kirjoita, kuinka paljon rahaa haluat käyttää. Kukin henkilö voi olla taulukossa useita kertoja jokaisen eri merkkipäivän kohdalla (kuten syntymäpäivä, joulu, vauvakutsut)."]
["Kuukausittaisen yleiskatsauksen otsikko on solussa oikealla ja vinkki solussa D2.","Kuukausittainen yleiskatsaus",null,"Kaavion avulla voit tarkastella tulevia kuukausia, jotta voit suunnitella etukäteen. Kirjaa ostoksesi, jotta voit seurata niitä budjetin mukaan."]
["Budjetoitujen summien pylväskaavio ja käytetyn summan viivakaavio on solussa oikealla.","Budjetoitujen summien pylväskaavio ja käytetyn summan viivakaavio on tässä solussa."]
["Lahjabudjetin ja -seurannan otsikko on solussa oikealla.","Lahjabudjetti ja seuranta"]
["Kirjoita tiedot Budjetin seuranta -taulukkoon alkaen oikealla olevasta solusta.","Kuka","Merkkipäivä","Kuukausi","Summa\nbudjetoitu","Summa\nkäytetty","Lahja","Linkki lahjaan","Kaupassa/\nOnline","Ostettu?","Paketoitu?","Toimitettu?","Muistiinpanot"]
[null,"Nimi 1","Syntymäpäivät","Kesäkuu",{"v":50,"d":"50 €"},{"v":30,"d":"30 €"},"Kengät","Myyjä","Online","Kyllä","Ei","Ei","16.6., Elokuvaliput"]
[null,"Nimi 2","Vuosipäivät","Huhtikuu",{"v":20,"d":"20 €"},{"v":20,"d":"20 €"},"Kissa","Myyjä","Kaupassa","Ei","Ei","Ei","Hän mainitsi tykkäävänsä koirista"]
[null,"Nimi 3","Juhlapäivät","Heinäkuu",{"v":50,"d":"50 €"},{"v":70,"d":"70 €"},"Kuulokkeet","Myyjä","Online","Ei","Ei","Ei","Tavaroita asuntoon"]
[null,"Nimi 4","Syntymäpäivät","Tammikuu",{"v":20,"d":"20 €"},{"v":30,"d":"30 €"},"Peli","Myyjä","Kaupassa","Kyllä","Kyllä","Kyllä"]
[null,"Nimi 5","Häät","Kesäkuu",{"v":100,"d":"100 €"},{"v":150,"d":"150 €"},"Kristallimaljakko","Myyjä","Kaupassa","Kyllä","Kyllä","Ei"]

{"sheet":"Tiedot","index":2,"n_rows":13,"n_cols":8,"rows_kept":13,"hidden":true}
["Merkkipäivät",null,"Päivämäärä","Päivämäärä","Budjetoitu määrä\nSyntymäpäivät","Budjetoitu määrä\nJuhlapäivät","Budjetoitu määrä\nMuut","Käytetty summa"]
["Syntymäpäivät",null,"Tammikuu","Tammi",{"$f":"SUMIFS(Budjettiseuranta[Summa\nbudjetoitu],Budjettiseuranta[Kuukausi],\"Tammikuu\",Budjettiseuranta[Merkkipäivä],\"Syntymäpäivät\")","v":{"v":20,"d":"20 €"}},{"$f":"SUMIFS(Budjettiseuranta[Summa\nbudjetoitu],Budjettiseuranta[Kuukausi],\"Tammikuu\",Budjettiseuranta[Merkkipäivä],\"Juhlapäivät\")","v":{"v":0,"d":"0 €"}},{"$f":"SUMIFS(Budjettiseuranta[Summa\nbudjetoitu],Budjettiseuranta[Kuukausi],\"Tammikuu\",Budjettiseuranta[Merkkipäivä],\"<>Juhlapäivät\",Budjettiseuranta[Merkkipäivä],\"<>Syntymäpäivät\")","v":{"v":0,"d":"0 €"}},{"$f":"SUMIFS(Budjettiseuranta[Summa\nkäytetty],Budjettiseuranta[Kuukausi],\"Tammikuu\")","v":{"v":30,"d":"30 €"}}]
["Juhlapäivät",null,"Helmikuu","Helmi",{"$f":"SUMIFS(Budjettiseuranta[Summa\nbudjetoitu],Budjettiseuranta[Kuukausi],\"Helmikuu\",Budjettiseuranta[Merkkipäivä],\"Syntymäpäivät\")","v":{"v":0,"d":"0 €"}},{"$f":"SUMIFS(Budjettiseuranta[Summa\nbudjetoitu],Budjettiseuranta[Kuukausi],\"Helmikuu\",Budjettiseuranta[Merkkipäivä],\"Juhlapäivät\")","v":{"v":0,"d":"0 €"}},{"$f":"SUMIFS(Budjettiseuranta[Summa\nbudjetoitu],Budjettiseuranta[Kuukausi],\"Helmikuu\",Budjettiseuranta[Merkkipäivä],\"<>Juhlapäivät\",Budjettiseuranta[Merkkipäivä],\"<>Syntymäpäivät\")","v":{"v":0,"d":"0 €"}},{"$f":"SUMIFS(Budjettiseuranta[Summa\nkäytetty],Budjettiseuranta[Kuukausi],\"Helmikuu\")","v":{"v":0,"d":"0 €"}}]
["Vuosipäivät",null,"Maaliskuu","Maalis",{"$f":"SUMIFS(Budjettiseuranta[Summa\nbudjetoitu],Budjettiseuranta[Kuukausi],\"Maaliskuu\",Budjettiseuranta[Merkkipäivä],\"Syntymäpäivät\")","v":{"v":0,"d":"0 €"}},{"$f":"SUMIFS(Budjettiseuranta[Summa\nbudjetoitu],Budjettiseuranta[Kuukausi],\"Maaliskuu\",Budjettiseuranta[Merkkipäivä],\"Juhlapäivät\")","v":{"v":0,"d":"0 €"}},{"$f":"SUMIFS(Budjettiseuranta[Summa\nbudjetoitu],Budjettiseuranta[Kuukausi],\"Maaliskuu\",Budjettiseuranta[Merkkipäivä],\"<>Juhlapäivät\",Budjettiseuranta[Merkkipäivä],\"<>Syntymäpäivät\")","v":{"v":0,"d":"0 €"}},{"$f":"SUMIFS(Budjettiseuranta[Summa\nkäytetty],Budjettiseuranta[Kuukausi],\"Maaliskuu\")","v":{"v":0,"d":"0 €"}}]
["Häät",null,"huhtikuu","Huhti",{"$f":"SUMIFS(Budjettiseuranta[Summa\nbudjetoitu],Budjettiseuranta[Kuukausi],\"Huhtikuu\",Budjettiseuranta[Merkkipäivä],\"Syntymäpäivät\")","v":{"v":0,"d":"0 €"}},{"$f":"SUMIFS(Budjettiseuranta[Summa\nbudjetoitu],Budjettiseuranta[Kuukausi],\"Huhtikuu\",Budjettiseuranta[Merkkipäivä],\"Juhlapäivät\")","v":{"v":0,"d":"0 €"}},{"$f":"SUMIFS(Budjettiseuranta[Summa\nbudjetoitu],Budjettiseuranta[Kuukausi],\"Huhtikuu\",Budjettiseuranta[Merkkipäivä],\"<>Juhlapäivät\",Budjettiseuranta[Merkkipäivä],\"<>Syntymäpäivät\")","v":{"v":20,"d":"20 €"}},{"$f":"SUMIFS(Budjettiseuranta[Summa\nkäytetty],Budjettiseuranta[Kuukausi],\"Huhtikuu\")","v":{"v":20,"d":"20 €"}}]
["Polttarit",null,"Toukokuu","Touko",{"$f":"SUMIFS(Budjettiseuranta[Summa\nbudjetoitu],Budjettiseuranta[Kuukausi],\"Toukokuu\",Budjettiseuranta[Merkkipäivä],\"Syntymäpäivät\")","v":{"v":0,"d":"0 €"}},{"$f":"SUMIFS(Budjettiseuranta[Summa\nbudjetoitu],Budjettiseuranta[Kuukausi],\"Toukokuu\",Budjettiseuranta[Merkkipäivä],\"Juhlapäivät\")","v":{"v":0,"d":"0 €"}},{"$f":"SUMIFS(Budjettiseuranta[Summa\nbudjetoitu],Budjettiseuranta[Kuukausi],\"Toukokuu\",Budjettiseuranta[Merkkipäivä],\"<>Juhlapäivät\",Budjettiseuranta[Merkkipäivä],\"<>Syntymäpäivät\")","v":{"v":0,"d":"0 €"}},{"$f":"SUMIFS(Budjettiseuranta[Summa\nkäytetty],Budjettiseuranta[Kuukausi],\"Toukokuu\")","v":{"v":0,"d":"0 €"}}]
["Vauvakutsut",null,"kesäkuu","Kesä",{"$f":"SUMIFS(Budjettiseuranta[Summa\nbudjetoitu],Budjettiseuranta[Kuukausi],\"Kesäkuu\",Budjettiseuranta[Merkkipäivä],\"Syntymäpäivät\")","v":{"v":50,"d":"50 €"}},{"$f":"SUMIFS(Budjettiseuranta[Summa\nbudjetoitu],Budjettiseuranta[Kuukausi],\"Kesäkuu\",Budjettiseuranta[Merkkipäivä],\"Juhlapäivät\")","v":{"v":0,"d":"0 €"}},{"$f":"SUMIFS(Budjettiseuranta[Summa\nbudjetoitu],Budjettiseuranta[Kuukausi],\"Kesäkuu\",Budjettiseuranta[Merkkipäivä],\"<>Juhlapäivät\",Budjettiseuranta[Merkkipäivä],\"<>Syntymäpäivät\")","v":{"v":100,"d":"100 €"}},{"$f":"SUMIFS(Budjettiseuranta[Summa\nkäytetty],Budjettiseuranta[Kuukausi],\"Kesäkuu\")","v":{"v":180,"d":"180 €"}}]
["Valmistujaiset",null,"heinäkuu","Heinä",{"$f":"SUMIFS(Budjettiseuranta[Summa\nbudjetoitu],Budjettiseuranta[Kuukausi],\"Heinäkuu\",Budjettiseuranta[Merkkipäivä],\"Syntymäpäivät\")","v":{"v":0,"d":"0 €"}},{"$f":"SUMIFS(Budjettiseuranta[Summa\nbudjetoitu],Budjettiseuranta[Kuukausi],\"Heinäkuu\",Budjettiseuranta[Merkkipäivä],\"Juhlapäivät\")","v":{"v":50,"d":"50 €"}},{"$f":"SUMIFS(Budjettiseuranta[Summa\nbudjetoitu],Budjettiseuranta[Kuukausi],\"Heinäkuu\",Budjettiseuranta[Merkkipäivä],\"<>Juhlapäivät\",Budjettiseuranta[Merkkipäivä],\"<>Syntymäpäivät\")","v":{"v":0,"d":"0 €"}},{"$f":"SUMIFS(Budjettiseuranta[Summa\nkäytetty],Budjettiseuranta[Kuukausi],\"Heinäkuu\")","v":{"v":70,"d":"70 €"}}]
["Muut",null,"Elokuu","Elo",{"$f":"SUMIFS(Budjettiseuranta[Summa\nbudjetoitu],Budjettiseuranta[Kuukausi],\"Elokuu\",Budjettiseuranta[Merkkipäivä],\"Syntymäpäivät\")","v":{"v":0,"d":"0 €"}},{"$f":"SUMIFS(Budjettiseuranta[Summa\nbudjetoitu],Budjettiseuranta[Kuukausi],\"Elokuu\",Budjettiseuranta[Merkkipäivä],\"Juhlapäivät\")","v":{"v":0,"d":"0 €"}},{"$f":"SUMIFS(Budjettiseuranta[Summa\nbudjetoitu],Budjettiseuranta[Kuukausi],\"Elokuu\",Budjettiseuranta[Merkkipäivä],\"<>Juhlapäivät\",Budjettiseuranta[Merkkipäivä],\"<>Syntymäpäivät\")","v":{"v":0,"d":"0 €"}},{"$f":"SUMIFS(Budjettiseuranta[Summa\nkäytetty],Budjettiseuranta[Kuukausi],\"Elokuu\")","v":{"v":0,"d":"0 €"}}]
[null,null,"syyskuu","Syys",{"$f":"SUMIFS(Budjettiseuranta[Summa\nbudjetoitu],Budjettiseuranta[Kuukausi],\"syyskuu\",Budjettiseuranta[Merkkipäivä],\"Syntymäpäivät\")","v":{"v":0,"d":"0 €"}},{"$f":"SUMIFS(Budjettiseuranta[Summa\nbudjetoitu],Budjettiseuranta[Kuukausi],\"syyskuu\",Budjettiseuranta[Merkkipäivä],\"Juhlapäivät\")","v":{"v":0,"d":"0 €"}},{"$f":"SUMIFS(Budjettiseuranta[Summa\nbudjetoitu],Budjettiseuranta[Kuukausi],\"syyskuu\",Budjettiseuranta[Merkkipäivä],\"<>Juhlapäivät\",Budjettiseuranta[Merkkipäivä],\"<>Syntymäpäivät\")","v":{"v":0,"d":"0 €"}},{"$f":"SUMIFS(Budjettiseuranta[Summa\nkäytetty],Budjettiseuranta[Kuukausi],\"syyskuu\")","v":{"v":0,"d":"0 €"}}]
[null,null,"lokakuu","Loka",{"$f":"SUMIFS(Budjettiseuranta[Summa\nbudjetoitu],Budjettiseuranta[Kuukausi],\"lokakuu\",Budjettiseuranta[Merkkipäivä],\"Syntymäpäivät\")","v":{"v":0,"d":"0 €"}},{"$f":"SUMIFS(Budjettiseuranta[Summa\nbudjetoitu],Budjettiseuranta[Kuukausi],\"lokakuu\",Budjettiseuranta[Merkkipäivä],\"Juhlapäivät\")","v":{"v":0,"d":"0 €"}},{"$f":"SUMIFS(Budjettiseuranta[Summa\nbudjetoitu],Budjettiseuranta[Kuukausi],\"lokakuu\",Budjettiseuranta[Merkkipäivä],\"<>Juhlapäivät\",Budjettiseuranta[Merkkipäivä],\"<>Syntymäpäivät\")","v":{"v":0,"d":"0 €"}},{"$f":"SUMIFS(Budjettiseuranta[Summa\nkäytetty],Budjettiseuranta[Kuukausi],\"lokakuu\")","v":{"v":0,"d":"0 €"}}]
[null,null,"Marraskuu","Marras",{"$f":"SUMIFS(Budjettiseuranta[Summa\nbudjetoitu],Budjettiseuranta[Kuukausi],\"Marraskuu\",Budjettiseuranta[Merkkipäivä],\"Syntymäpäivät\")","v":{"v":0,"d":"0 €"}},{"$f":"SUMIFS(Budjettiseuranta[Summa\nbudjetoitu],Budjettiseuranta[Kuukausi],\"Marraskuu\",Budjettiseuranta[Merkkipäivä],\"Juhlapäivät\")","v":{"v":0,"d":"0 €"}},{"$f":"SUMIFS(Budjettiseuranta[Summa\nbudjetoitu],Budjettiseuranta[Kuukausi],\"Marraskuu\",Budjettiseuranta[Merkkipäivä],\"<>Juhlapäivät\",Budjettiseuranta[Merkkipäivä],\"<>Syntymäpäivät\")","v":{"v":0,"d":"0 €"}},{"$f":"SUMIFS(Budjettiseuranta[Summa\nkäytetty],Budjettiseuranta[Kuukausi],\"Marraskuu\")","v":{"v":0,"d":"0 €"}}]
[null,null,"Joulukuu","Joulu",{"$f":"SUMIFS(Budjettiseuranta[Summa\nbudjetoitu],Budjettiseuranta[Kuukausi],\"Joulukuu\",Budjettiseuranta[Merkkipäivä],\"Syntymäpäivät\")","v":{"v":0,"d":"0 €"}},{"$f":"SUMIFS(Budjettiseuranta[Summa\nbudjetoitu],Budjettiseuranta[Kuukausi],\"Joulukuu\",Budjettiseuranta[Merkkipäivä],\"Juhlapäivät\")","v":{"v":0,"d":"0 €"}},{"$f":"SUMIFS(Budjettiseuranta[Summa\nbudjetoitu],Budjettiseuranta[Kuukausi],\"Joulukuu\",Budjettiseuranta[Merkkipäivä],\"<>Juhlapäivät\",Budjettiseuranta[Merkkipäivä],\"<>Syntymäpäivät\")","v":{"v":0,"d":"0 €"}},{"$f":"SUMIFS(Budjettiseuranta[Summa\nkäytetty],Budjettiseuranta[Kuukausi],\"Joulukuu\")","v":{"v":0,"d":"0 €"}}]